[Event "58th Akiba Rubinstein D 2022"]
[Site "Polanica-Zdroj"]
[Date "2022.08.18"]
[Round "6.15"]
[White "Rosa, Antoni"]
[Black "Pieczulis, Blazej"]
[Result "0-1"]
[ECO "A10"]
[WhiteElo "1598"]
[BlackElo "1720"]
[Annotator "NA RC"]
[PlyCount "116"]
[EventDate "2022.08.13"]
[EventCountry "POL"]
[SourceTitle "playchess.com"]
[Source "ChessBase"]
[SourceQuality "1"]
[TimeControl "40/5400+30:1800+30"]

1. c4 {[%emt 0:00:03]} g6 {[%emt 0:00:22]} 2. Nc3 {[%emt 0:00:21]} Bg7 {[%emt 0:00:06]} 3. g3 {[%emt 0:00:09]} Nf6 {[%emt 0:00:20]} 4. Bg2 {[%emt 0:00:08]} O-O {[%emt 0:00:15]} 5. e4 {[%emt 0:00:30]} e5 {[%emt 0:03:11]} 6. Nge2 {[%emt 0:00:59]} d6 {[%emt 0:01:17]} 7. O-O {[%emt 0:00:34]} c6 {[%emt 0:03:20]} 8. d3 {[%emt 0:01:09]} Nh5 {[%emt 0:01:50]} 9. Be3 {[%emt 0:02:18]} f5 {[%emt 0:01:07]} 10. Qd2 {[%emt 0:00:52]} Na6 11. f4 {[%emt 0:05:17]} Nc7 {[%emt 0:08:29]} 12. b4 {[%emt 0:15:29]} Be6 {[%emt 0:02:00]} 13. c5 {[%emt 0:01:26]} d5 {[%emt 0:01:19]} 14. exd5 {[%emt 0:01:31]} Nxd5 {[%emt 0:03:29]} 15. Bxd5 {[%emt 0:02:19]} Bxd5 {[%emt 0:00:38]} 16. fxe5 {[%emt 0:00:37]} Bxe5 {[%emt 0:01:02]} 17. d4 {[%emt 0:00:51]} Bc7 {[%emt 0:00:21]} 18. Nf4 {[%emt 0:00:41]} Bc4 {[%emt 0:02:38]} 19. Nxh5 {[%emt 0:03:23]} Bxf1 {[%emt 0:00:16]} 20. Bg5 {[%emt 0:00:21]} Qd7 {[%emt 0:02:24]} 21. Nf6+ {[%emt 0:01:07]} Rxf6 {[%emt 0:00:07]} 22. Bxf6 {[%emt 0:00:03]} Bc4 {[%emt 0:00:37]} 23. Re1 {[%emt 0:04:03]} Re8 {[%emt 0:02:16]} 24. Rxe8+ {[%emt 0:03:33]} Qxe8 {[%emt 0:00:06]} 25. d5 {[%emt 0:04:12]} cxd5 {[%emt 0:21:04]} 26. Nxd5 {[%emt 0:00:08]} Qf7 {[%emt 0:01:47]} 27. Nxc7 {[%emt 0:03:19]} Qxf6 {[%emt 0:07:45]} 28. Qe1 {[%emt 0:01:30]} Qd4+ {[%emt 0:16:57]} 29. Kg2 {[%emt 0:00:17]} Bxa2 {[%emt 0:01:22]} 30. Qe8+ {[%emt 0:02:55]} Kg7 {[%emt 0:00:13]} 31. Qe7+ {[%emt 0:01:19]} Kh6 {[%emt 0:00:39]} 32. Ne8 {[%emt 0:02:07]} Bd5+ {[%emt 0:01:36]} 33. Kf1 {[%emt 0:01:03]} Qd1+ {[%emt 0:01:35]} 34. Kf2 {[%emt 0:02:30]} Qf3+ {[%emt 0:03:44]} 35. Ke1 {[%emt 0:00:27]} Qh1+ {[%emt 0:01:00]} 36. Kd2 {[%emt 0:01:02]} Qxh2+ {[%emt 0:00:22]} 37. Kc1 {[%emt 0:02:18]} Qg1+ {[%emt 0:01:34]} 38. Kd2 {[%emt 0:00:26]} Qd4+ {[%emt 0:00:29]} 39. Ke2 {[%emt 0:01:00]} Qg4+ {[%emt 0:04:06]} 40. Kf1 {[%emt 0:02:32]} Qf3+ {[%emt 0:00:31]} 41. Ke1 {[%emt 0:30:10]} Qxg3+ {[%emt 0:30:19]} 42. Kd2 {[%emt 0:00:13]} Qg5+ {[%emt 0:02:08]} 43. Qxg5+ {[%emt 0:00:19]} Kxg5 {[%emt 0:00:01]} 44. Nc7 {[%emt 0:00:30]} Bc6 {[%emt 0:00:39]} 45. b5 {[%emt 0:00:28]} Bd7 {[%emt 0:00:10]} 46. Ke3 {[%emt 0:00:49]} h5 {[%emt 0:00:16]} 47. Kf3 {[%emt 0:00:54]} Kf6 {[%emt 0:00:37]} 48. Nd5+ {[%emt 0:00:54]} Ke5 {[%emt 0:00:22]} 49. Ne7 {[%emt 0:00:10]} Bxb5 {[%emt 0:01:05]} 50. Nxg6+ {[%emt 0:00:09]} Kd4 {[%emt 0:00:27]} 51. Nf4 {[%emt 0:00:34]} Kxc5 {[%emt 0:00:13]} 52. Nxh5 {[%emt 0:00:11]} Bd3 {[%emt 0:00:15]} 53. Ke3 {[%emt 0:00:25]} Be4 {[%emt 0:00:03]} 54. Nf4 {[%emt 0:00:31]} b5 {[%emt 0:00:10]} 55. Kd2 {[%emt 0:00:25]} a5 {[%emt 0:00:11]} 56. Kc3 {[%emt 0:00:28]} b4+ {[%emt 0:00:32]} 57. Kb3 {[%emt 0:00:04]} Kb5 {[%emt 0:00:14]} 58. Kb2 {[%emt 0:00:31]} Kc4 {[%emt 0:00:15]} 0-1

[Event "58th Akiba Rubinstein D 2022"]
[Site "Polanica-Zdroj"]
[Date "2022.08.18"]
[Round "6.16"]
[White "Urbanski, Wojciech"]
[Black "Serewa, Antoni"]
[Result "1-0"]
[ECO "B10"]
[WhiteElo "1632"]
[BlackElo "1542"]
[Annotator "NA RC"]
[PlyCount "111"]
[EventDate "2022.08.13"]
[EventCountry "POL"]
[SourceTitle "playchess.com"]
[Source "ChessBase"]
[SourceQuality "1"]
[TimeControl "40/5400+30:1800+30"]

1. e4 {[%emt 0:00:28]} c6 {[%emt 0:00:08]} 2. Nf3 {[%emt 0:00:07]} d5 {[%emt 0:00:06]} 3. Nc3 {[%emt 0:00:13]} dxe4 {[%emt 0:00:19]} 4. Nxe4 {[%emt 0:00:14]} Nf6 {[%emt 0:00:04]} 5. Ng3 {[%emt 0:01:17]} h5 {[%emt 0:01:46]} 6. h3 {[%emt 0:02:54]} h4 {[%emt 0:04:46]} 7. Ne2 {[%emt 0:00:15]} Bf5 {[%emt 0:01:01]} 8. Nc3 {[%emt 0:01:17]} e6 {[%emt 0:01:37]} 9. d3 {[%emt 0:04:39]} Be7 {[%emt 0:01:19]} 10. Bg5 {[%emt 0:03:20]} Nd5 {[%emt 0:00:21]} 11. Bxe7 {[%emt 0:01:21]} Qxe7 {[%emt 0:00:08]} 12. Nxd5 {[%emt 0:01:15]} cxd5 {[%emt 0:00:32]} 13. Qd2 {[%emt 0:01:16]} Nc6 {[%emt 0:00:34]} 14. Be2 {[%emt 0:01:35]} f6 {[%emt 0:08:36]} 15. c3 {[%emt 0:02:28]} e5 {[%emt 0:05:21]} 16. b4 {[%emt 0:04:44]} Qd7 {[%emt 0:08:21]} 17. a4 {[%emt 0:03:19]} a6 {[%emt 0:00:13]} 18. Qe3 {[%emt 0:03:18]} Ne7 {[%emt 0:15:33]} 19. Kd2 {[%emt 0:28:27]} d4 {[%emt 0:15:15]} 20. cxd4 {[%emt 0:02:29]} Nd5 {[%emt 0:00:09]} 21. Nxe5 {[%emt 0:00:12]} Qe7 {[%emt 0:04:54]} 22. Nc6 {[%emt 0:01:03]} bxc6 {[%emt 0:00:41]} 23. Qxe7+ {[%emt 0:00:07]} Kxe7 {[%emt 0:00:16]} 24. Bf3 {[%emt 0:00:34]} Nxb4 {[%emt 0:00:27]} 25. Rab1 {[%emt 0:00:49]} a5 {[%emt 0:00:14]} 26. Rhc1 {[%emt 0:00:13]} Rac8 {[%emt 0:01:22]} 27. Rc5 {[%emt 0:00:10]} Rc7 {[%emt 0:13:01]} 28. Rxf5 {[%emt 0:00:11]} Rd8 {[%emt 0:01:53]} 29. Rxa5 {[%emt 0:01:01]} c5 {[%emt 0:01:29]} 30. Rxc5 {[%emt 0:07:22]} Rxc5 {[%emt 0:00:04]} 31. dxc5 {[%emt 0:00:40]} Nxd3 {[%emt 0:00:04]} 32. c6 {[%emt 0:02:27]} Nc5+ {[%emt 0:00:42]} 33. Ke3 {[%emt 0:01:36]} Nxa4 {[%emt 0:00:19]} 34. Rb7+ {[%emt 0:00:31]} Kd6 {[%emt 0:00:20]} 35. Rxg7 {[%emt 0:00:56]} Nc5 {[%emt 0:00:33]} 36. Rf7 {[%emt 0:02:31]} Re8+ {[%emt 0:03:26]} 37. Kd4 {[%emt 0:03:18]} Ne6+ {[%emt 0:00:20]} 38. Kc4 {[%emt 0:01:37]} Ke5 {[%emt 0:00:24]} 39. Kb5 {[%emt 0:02:50]} Rb8+ {[%emt 0:03:08]} 40. Rb7 {[%emt 0:02:49]} Rc8 {[%emt 0:00:27]} 41. Rh7 {[%emt 0:31:10]} Nd4+ {[%emt 0:31:09]} 42. Kb6 {[%emt 0:00:55]} Rb8+ {[%emt 0:00:34]} 43. Rb7 {[%emt 0:01:34]} Nxc6 {[%emt 0:00:52]} 44. Kxc6 {[%emt 0:00:40]} Rd8 {[%emt 0:00:10]} 45. Rb5+ {[%emt 0:01:04]} Ke6 {[%emt 0:00:33]} 46. Bg4+ {[%emt 0:01:56]} Kf7 {[%emt 0:00:04]} 47. Rd5 {[%emt 0:00:41]} Rb8 {[%emt 0:00:15]} 48. Kd6 {[%emt 0:02:04]} Rb2 {[%emt 0:00:11]} 49. Bh5+ {[%emt 0:00:21]} Kg7 {[%emt 0:00:04]} 50. Rf5 {[%emt 0:00:12]} Rd2+ {[%emt 0:00:31]} 51. Ke7 {[%emt 0:00:06]} Rb2 {[%emt 0:00:19]} 52. Rf4 {[%emt 0:01:32]} Ra2 {[%emt 0:00:28]} 53. Rg4+ {[%emt 0:01:11]} Kh6 {[%emt 0:00:36]} 54. Bf7 {[%emt 0:00:04]} f5 {[%emt 0:00:41]} 55. Rxh4+ {[%emt 0:00:31]} Kg7 {[%emt 0:00:06]} 56. Bxa2 {[%emt 0:00:05]} 1-0

[Event "58th Akiba Rubinstein D 2022"]
[Site "Polanica-Zdroj"]
[Date "2022.08.18"]
[Round "6.17"]
[White "Grzelak, Piotr"]
[Black "Kopestynski, Michal"]
[Result "1/2-1/2"]
[ECO "B20"]
[WhiteElo "1684"]
[BlackElo "1554"]
[Annotator "NA RC"]
[PlyCount "25"]
[EventDate "2022.08.13"]
[EventCountry "POL"]
[SourceTitle "playchess.com"]
[Source "ChessBase"]
[SourceQuality "1"]
[TimeControl "40/5400+30:1800+30"]

1. e4 c5 {[%emt 0:02:45]} 2. c4 {[%emt 0:00:05]} Nc6 {[%emt 0:00:10]} 3. Nc3 {[%emt 0:01:37]} g6 {[%emt 0:00:43]} 4. Nge2 {[%emt 0:00:38]} Bg7 {[%emt 0:00:08]} 5. g3 {[%emt 0:00:43]} e5 {[%emt 0:00:50]} 6. Bg2 {[%emt 0:01:26]} Nge7 {[%emt 0:00:10]} 7. d3 {[%emt 0:00:13]} O-O {[%emt 0:00:13]} 8. O-O {[%emt 0:02:44]} d6 {[%emt 0:00:07]} 9. Nd5 {[%emt 0:01:16]} Nxd5 10. exd5 {[%emt 0:01:42]} Nd4 {[%emt 0:09:20]} 11. Nxd4 {[%emt 0:00:13]} exd4 {[%emt 0:01:16]} 12. Re1 {[%emt 0:03:18]} Bf5 {[%emt 0:06:41]} 13. Be4 {[%emt 0:03:53]} 1/2-1/2

[Event "58th Akiba Rubinstein D 2022"]
[Site "Polanica-Zdroj"]
[Date "2022.08.18"]
[Round "6.19"]
[White "Nowicki, Bartosz"]
[Black "Wziatek, Marek"]
[Result "1-0"]
[ECO "B35"]
[WhiteElo "2291"]
[BlackElo "1617"]
[Annotator "TA"]
[PlyCount "91"]
[EventDate "2022.08.13"]
[EventCountry "POL"]
[SourceTitle "playchess.com"]
[Source "ChessBase"]
[SourceQuality "1"]
[TimeControl "40/5400+30:1800+30"]

{[%evp 13,91,10,55,13,18,16,29,16,0,-6,0,6,1,9,76,47,57,0,22,43,20,23,93,64,123,116,134,130,211,105,170,160,308,311,494,492,504,460,665,610,858,604,590,347,344,349,676,644,860,879,1532,1121,1031,879,857,849,831,832,753,738,1301,1181,2295,2112,29987,29988,29992,29993,29993,29990,29990,29986,5317,5691,2079,1989,29998,-2462,0,0]} 1. e4 {[%emt 0:00:03]} c5 {[%emt 0:00:12]} 2. Nf3 {[%emt 0:00:06]} Nc6 {[%emt 0:00:02]} 3. Nc3 {[%emt 0:00:36]} g6 {[%emt 0:00:57]} 4. d4 {[%emt 0:00:40]} cxd4 {[%emt 0:00:04]} 5. Nxd4 {[%emt 0:00:05]} Bg7 {[%emt 0:00:09]} 6. Be3 {[%emt 0:00:06]} Nf6 {[%emt 0:03:14]} 7. Bc4 {[%emt 0:00:23]} Na5 {[%emt 0:05:17]} 8. Be2 {[%emt 0:03:56] B35: Sicilian: Accelerated Dragon with 5 Nc3: main line.} (8. Bxf7+ {feels hotter.} Kxf7 9. e5 b6 10. exf6 Bxf6 11. Nd5) 8... d6 {[%emt 0:00:19]} 9. O-O {[%emt 0:02:47]} O-O {[%emt 0:00:11]} 10. h3 {[%emt 0:04:38] White has an edge.} Bd7 {[%emt 0:00:39]} 11. f4 {[%emt 0:01:25]} a6 {[%emt 0:03:36]} 12. Qd2 {[%emt 0:04:12]} Rc8 {[%emt 0:00:42]} 13. Rad1 {[%emt 0:05:05]} Nc4 {[%emt 0:02:04] Prevents e5.} (13... Qc7 $11 {remains equal.}) 14. Bxc4 $16 {[%emt 0:00:02]} Rxc4 {[%emt 0:00:02]} 15. b3 {[%emt 0:01:57]} (15. e5 $1 $14 Ne8 16. Bf2) 15... Rc8 {[%emt 0:01:30]} (15... Rxc3 $5 16. Qxc3 Nxe4 $11) 16. e5 {[%emt 0:17:59]} Ne8 {[%emt 0:00:18] [#]} 17. Nf3 $146 {[%emt 0:01:43]} ({Predecessor:} 17. Ne4 d5 18. Ng5 e6 19. g4 Nc7 20. h4 Nb5 21. Nxb5 Bxb5 22. Rf2 Qc7 23. h5 {0-1 (51) Hernandez Torres,A (1905)-Garces,J (2012) Puerto Boyaca 2012}) 17... e6 {[%emt 0:01:44] Against Nd5} (17... b5 $11) 18. Ne4 {[%emt 0:03:20]} d5 {[%emt 0:23:42]} (18... Bc6 $1 $14 19. Nxd6 Nxd6) 19. Nf2 {[%emt 0:05:44] 0x0.001ebad69272dp-1022s more active pieces. The black rooks are badly placed.} Qc7 {[%emt 0:02:53]} 20. c4 $36 {[%emt 0:01:04][%mdl 2048] Black is under strong pressure.} h5 {[%emt 0:06:01]} (20... Qb8 $16 21. Qb4 (21. cxd5 exd5 22. Qxd5 Bc6 $16) 21... Nc7) 21. c5 {[%emt 0:05:28]} (21. Rc1 $18 {is more deadly.}) 21... Bh6 {[%emt 0:01:03]} (21... Kh8 $16 {is a better defense.}) 22. g4 $18 {[%emt 0:01:39][%cal Bg2g4,Bg4g5][%mdl 32]} Qd8 {[%emt 0:01:25]} (22... Bb5 $16 {was called for.}) 23. Kh2 {[%emt 0:03:36]} h4 {[%emt 0:03:03]} (23... Ng7 {was worth a try.} 24. g5 Bxg5) 24. g5 {[%emt 0:00:32]} Bg7 {[%emt 0:00:14]} 25. Ng4 {[%emt 0:02:40]} Bc6 {[%emt 0:03:00]} (25... Bb5 $142 26. Rg1 d4 27. Nxd4 (27. Qxd4 Qxd4 28. Nxd4 Nc7 $16) 27... Rxc5 28. Nf6+ Nxf6) 26. Bd4 {[%emt 0:00:44]} Nc7 27. Qf2 {[%emt 0:01:11] [#] aiming for Nf6+.} Re8 {[%emt 0:01:59]} 28. Nf6+ {[%emt 0:00:24]} Kf8 {[%emt 0:03:52]} 29. Qxh4 {[%emt 0:01:51]} ({Don't play} 29. Nxe8 Nxe8 30. Nxh4 Kg8 $18) 29... Nb5 $2 {[%emt 0:00:46]} (29... Ke7 30. Qh7 Rg8) 30. Qh7 {[%emt 0:00:34] Threatens to win with f5.} Nxd4 {[%emt 0:02:37]} 31. Nxd4 {[%emt 0:01:33] Black must now prevent f5. Pair of Knights!} Qa5 {[%emt 0:01:45]} 32. Qg8+ {[%emt 0:01:22]} Ke7 {[%emt 0:00:18]} 33. Nxc6+ {[%emt 0:00:30]} bxc6 {[%emt 0:00:40]} 34. Nxe8 {[%emt 0:01:15]} Qxa2+ {[%emt 0:05:57]} 35. Kg3 {[%emt 0:01:25]} Rxe8 {[%emt 0:00:13]} 36. Qxg7 {[%emt 0:00:10] Ra1 is the strong threat.} Rf8 {[%emt 0:00:16]} 37. Qf6+ {[%emt 0:01:15]} Ke8 38. Ra1 {[%emt 0:01:15][%cal Bd1a1,Ba1b1,Bb1b7][%mdl 32]} Qxb3+ {[%emt 0:00:05]} 39. Kh4 {[%emt 0:00:20]} Qc4 {[%emt 0:01:19]} 40. Rab1 {[%emt 0:00:20]} Kd7 {[%emt 0:02:29]} 41. Qg7 {[%emt 0:31:18]} Qxc5 {[%emt 0:32:11]} 42. Rb7+ {[%emt 0:03:22]} Kc8 {[%emt 0:02:50] [#]} 43. Qxf8+ $3 {[%emt 0:02:11][%mdl 512]} Qxf8 {[%emt 0:00:54]} 44. Rfb1 {[%emt 0:00:03] Threatening mate with Rb8+.} Qc5 45. Rf1 $4 {[%mdl 8192]} Qf8 $2 (45... Kxb7 $19 46. Kg3 a5) 46. Rfb1 {[%mdl 32768] White used his chance.  Weighted Error Value: White=0.28 (precise) /Black=0.72. Loss on time!?} 1-0

[Event "58th Akiba Rubinstein D 2022"]
[Site "Polanica-Zdroj"]
[Date "2022.08.18"]
[Round "6.20"]
[White "Butkiewicz, Jan"]
[Black "Karpiuk, Julian"]
[Result "1-0"]
[ECO "E11"]
[WhiteElo "1613"]
[BlackElo "1513"]
[Annotator "NA RC"]
[PlyCount "55"]
[EventDate "2022.08.13"]
[EventCountry "POL"]
[SourceTitle "playchess.com"]
[Source "ChessBase"]
[SourceQuality "1"]
[TimeControl "40/5400+30:1800+30"]

1. d4 {[%emt 0:00:03]} Nf6 {[%emt 0:00:06]} 2. c4 {[%emt 0:00:04]} e6 {[%emt 0:00:06]} 3. Nf3 {[%emt 0:00:04]} Bb4+ {[%emt 0:00:08]} 4. Nbd2 {[%emt 0:00:06]} O-O {[%emt 0:00:56]} 5. a3 {[%emt 0:00:04]} Bxd2+ {[%emt 0:00:07]} 6. Bxd2 {[%emt 0:00:04]} d6 {[%emt 0:01:03]} 7. Qc2 {[%emt 0:08:07]} Qe7 {[%emt 0:06:21]} 8. e4 {[%emt 0:13:43]} Nc6 {[%emt 0:11:23]} 9. b4 {[%emt 0:08:58]} e5 {[%emt 0:05:40]} 10. d5 {[%emt 0:03:02]} Nd4 {[%emt 0:02:00]} 11. Nxd4 {[%emt 0:04:58]} exd4 {[%emt 0:00:07]} 12. f3 {[%emt 0:00:49]} c5 {[%emt 0:02:47]} 13. bxc5 {[%emt 0:01:32]} dxc5 {[%emt 0:08:23]} 14. Bd3 {[%emt 0:03:29]} b5 {[%emt 0:05:36]} 15. cxb5 {[%emt 0:10:04]} Nxd5 {[%emt 0:00:59]} 16. Rc1 {[%emt 0:02:22]} Qh4+ {[%emt 0:20:46]} 17. g3 {[%emt 0:00:44]} Qh5 {[%emt 0:00:05]} 18. O-O {[%emt 0:10:09]} Bh3 {[%emt 0:04:01]} 19. exd5 {[%emt 0:04:29]} Bxf1 20. Rxf1 {[%emt 0:00:09]} Rac8 {[%emt 0:03:32]} 21. Bc4 {[%emt 0:02:32]} Rfe8 {[%emt 0:04:10]} 22. a4 {[%emt 0:02:07]} Qh3 {[%emt 0:01:44]} 23. a5 {[%emt 0:02:25]} h5 {[%emt 0:00:31]} 24. b6 {[%emt 0:02:15]} axb6 {[%emt 0:00:17]} 25. axb6 {[%emt 0:00:08]} Re7 {[%emt 0:09:07]} 26. d6 {[%emt 0:03:43]} Rd7 {[%emt 0:00:52]} 27. Bf4 {[%emt 0:02:02]} g5 {[%emt 0:01:41]} 28. Qg6+ 1-0

[Event "58th Akiba Rubinstein D 2022"]
[Site "Polanica-Zdroj"]
[Date "2022.08.18"]
[Round "6.21"]
[White "Rychlik, Michal"]
[Black "Milczarek, Robert"]
[Result "1/2-1/2"]
[ECO "E62"]
[WhiteElo "1354"]
[BlackElo "1653"]
[Annotator "NA RC"]
[PlyCount "49"]
[EventDate "2022.08.13"]
[EventCountry "POL"]
[SourceTitle "playchess.com"]
[Source "ChessBase"]
[SourceQuality "1"]
[TimeControl "40/5400+30:1800+30"]

1. d4 {[%emt 0:00:09]} Nf6 {[%emt 0:00:13]} 2. c4 {[%emt 0:00:15]} g6 {[%emt 0:00:12]} 3. Nc3 {[%emt 0:00:20]} Bg7 {[%emt 0:00:07]} 4. g3 {[%emt 0:00:10]} O-O {[%emt 0:00:22]} 5. Bg2 {[%emt 0:00:09]} d6 {[%emt 0:00:23]} 6. Nf3 {[%emt 0:00:07]} Nc6 {[%emt 0:00:15]} 7. O-O {[%emt 0:00:07]} Bf5 {[%emt 0:00:17]} 8. Be3 {[%emt 0:00:32]} Ne4 {[%emt 0:03:24]} 9. Na4 {[%emt 0:00:02]} a6 {[%emt 0:05:00]} 10. Nh4 {[%emt 0:05:22]} b5 {[%emt 0:11:54]} 11. cxb5 {[%emt 0:11:25]} axb5 {[%emt 0:00:30]} 12. Bxe4 {[%emt 0:27:44]} Bxe4 {[%emt 0:01:33]} 13. Nc3 d5 {[%emt 0:07:37]} 14. Nxb5 {[%emt 0:05:57]} e5 {[%emt 0:02:37]} 15. f3 {[%emt 0:02:34]} g5 {[%emt 0:05:16]} 16. fxe4 {[%emt 0:04:35]} gxh4 {[%emt 0:01:24]} 17. exd5 {[%emt 0:00:30]} Qxd5 {[%emt 0:06:51]} 18. Nc3 {[%emt 0:01:13]} Qd6 {[%emt 0:04:28]} 19. d5 {[%emt 0:04:00]} Nd4 {[%emt 0:01:44]} 20. Bf2 {[%emt 0:03:10]} Qg6 {[%emt 0:04:02]} 21. Kh1 {[%emt 0:02:34]} h3 {[%emt 0:04:43]} 22. e3 {[%emt 0:04:29]} Nb5 {[%emt 0:04:47]} 23. Be1 {[%emt 0:03:02]} Nd6 {[%emt 0:03:27]} 24. Bd2 {[%emt 0:02:50]} Rab8 {[%emt 0:02:44]} 25. b3 {[%emt 0:01:38]} 1/2-1/2

[Event "58th Akiba Rubinstein D 2022"]
[Site "Polanica-Zdroj"]
[Date "2022.08.18"]
[Round "6.22"]
[White "Markiewicz, Jacek"]
[Black "Soszka, Szymon"]
[Result "0-1"]
[ECO "B12"]
[WhiteElo "1610"]
[BlackElo "1355"]
[Annotator "NA RC"]
[PlyCount "78"]
[EventDate "2022.08.13"]
[EventCountry "POL"]
[SourceTitle "playchess.com"]
[Source "ChessBase"]
[SourceQuality "1"]
[TimeControl "40/5400+30:1800+30"]

1. e4 c6 {[%emt 0:13:02]} 2. d4 {[%emt 0:00:26]} d5 {[%emt 0:00:21]} 3. e5 {[%emt 0:00:04]} Bf5 {[%emt 0:00:05]} 4. h4 {[%emt 0:00:10]} Bd7 {[%emt 0:00:05]} 5. Be3 {[%emt 0:00:58]} e6 {[%emt 0:00:18]} 6. Nd2 {[%emt 0:03:29]} c5 {[%emt 0:02:46]} 7. c3 {[%emt 0:02:36]} Qb6 {[%emt 0:01:22]} 8. Rb1 {[%emt 0:08:13]} Nc6 {[%emt 0:00:30]} 9. Ngf3 {[%emt 0:02:12]} cxd4 {[%emt 0:00:21]} 10. cxd4 Bb4 {[%emt 0:00:22]} 11. a3 {[%emt 0:02:33]} Bxd2+ {[%emt 0:00:18]} 12. Qxd2 {[%emt 0:00:36]} Nge7 {[%emt 0:00:34]} 13. Be2 {[%emt 0:03:26]} Nf5 {[%emt 0:00:21]} 14. O-O {[%emt 0:01:56]} O-O {[%emt 0:06:57]} 15. b4 {[%emt 0:07:27]} Rfc8 {[%emt 0:00:30]} 16. g4 {[%emt 0:04:05]} Nxe3 {[%emt 0:00:26]} 17. fxe3 {[%emt 0:00:17]} Nd8 {[%emt 0:02:36]} 18. b5 {[%emt 0:13:17]} Be8 {[%emt 0:02:39]} 19. Bd3 {[%emt 0:02:04]} Qc7 {[%emt 0:00:31]} 20. Rbc1 {[%emt 0:03:02]} Qd7 {[%emt 0:02:20]} 21. Ng5 {[%emt 0:03:55]} h6 {[%emt 0:01:09]} 22. Nh7 {[%emt 0:06:48]} Qe7 {[%emt 0:00:57]} 23. g5 {[%emt 0:12:04]} hxg5 {[%emt 0:12:30]} 24. hxg5 {[%emt 0:03:40]} Qxa3 {[%emt 0:00:27]} 25. Nf6+ {[%emt 0:01:49]} Kf8 {[%emt 0:00:20]} 26. g6 {[%emt 0:12:54]} Rxc1 {[%emt 0:03:29]} 27. Rxc1 {[%emt 0:00:34]} gxf6 {[%emt 0:01:03]} 28. g7+ {[%emt 0:00:32]} Kxg7 29. Kh2 {[%emt 0:05:00]} fxe5 {[%emt 0:03:13]} 30. dxe5 {[%emt 0:00:35]} Qa4 {[%emt 0:06:16]} 31. Qg2+ {[%emt 0:00:44]} Kf8 {[%emt 0:00:16]} 32. Qg5 {[%emt 0:00:27]} Qa5 {[%emt 0:03:00]} 33. Qh6+ {[%emt 0:00:30]} Ke7 {[%emt 0:00:11]} 34. Qh4+ {[%emt 0:00:20]} Kd7 {[%emt 0:00:11]} 35. Rd1 {[%emt 0:00:41]} Rc8 {[%emt 0:00:19]} 36. e4 {[%emt 0:00:17]} Rc1 {[%emt 0:00:43]} 37. Rxc1 {[%emt 0:00:44]} Qd2+ {[%emt 0:00:04]} 38. Kg1 {[%emt 0:00:28]} Qxc1+ {[%emt 0:00:13]} 39. Bf1 {[%emt 0:00:04]} Qe3+ {[%emt 0:00:17]} 0-1

[Event "58th Akiba Rubinstein D 2022"]
[Site "Polanica-Zdroj"]
[Date "2022.08.18"]
[Round "6.23"]
[White "Wilgosz, Tomasz"]
[Black "Krygiel, Konrad"]
[Result "1/2-1/2"]
[ECO "C54"]
[WhiteElo "1513"]
[BlackElo "1603"]
[Annotator "NA RC"]
[PlyCount "21"]
[EventDate "2022.08.13"]
[EventCountry "POL"]
[SourceTitle "playchess.com"]
[Source "ChessBase"]
[SourceQuality "1"]
[TimeControl "40/5400+30:1800+30"]

1. e4 {[%emt 0:00:03]} e5 {[%emt 0:00:17]} 2. Nf3 {[%emt 0:00:17]} Nc6 {[%emt 0:00:02]} 3. Bc4 {[%emt 0:00:11]} Bc5 {[%emt 0:00:02]} 4. c3 {[%emt 0:00:45]} Nf6 {[%emt 0:00:07]} 5. d4 {[%emt 0:01:33]} exd4 {[%emt 0:00:08]} 6. e5 {[%emt 0:02:12]} d5 {[%emt 0:00:05]} 7. Bb5 {[%emt 0:01:48]} Ne4 {[%emt 0:00:05]} 8. cxd4 {[%emt 0:02:04]} Bb6 {[%emt 0:00:05]} 9. h3 {[%emt 0:04:05]} O-O {[%emt 0:01:30]} 10. O-O {[%emt 0:01:24]} f6 {[%emt 0:04:34]} 11. Nc3 1/2-1/2

[Event "58th Akiba Rubinstein D 2022"]
[Site "Polanica-Zdroj"]
[Date "2022.08.18"]
[Round "6.24"]
[White "Suszczynski, Dominik"]
[Black "Litwin, Tomasz"]
[Result "1/2-1/2"]
[ECO "C00"]
[WhiteElo "1329"]
[BlackElo "1580"]
[Annotator "NA RC"]
[PlyCount "61"]
[EventDate "2022.08.13"]
[EventCountry "POL"]
[SourceTitle "playchess.com"]
[Source "ChessBase"]
[SourceQuality "1"]
[TimeControl "40/5400+30:1800+30"]

1. e4 {[%emt 0:13:35]} e6 {[%emt 0:01:15]} 2. Nf3 {[%emt 0:00:04]} d5 {[%emt 0:01:10]} 3. e5 {[%emt 0:00:01]} c5 {[%emt 0:00:20]} 4. b4 {[%emt 0:00:03]} cxb4 {[%emt 0:01:50]} 5. d4 {[%emt 0:00:00]} Ne7 {[%emt 0:05:07]} 6. a3 {[%emt 0:00:29]} Nf5 {[%emt 0:00:19]} 7. axb4 {[%emt 0:00:11]} Bxb4+ {[%emt 0:00:03]} 8. c3 {[%emt 0:00:07]} Bf8 {[%emt 0:00:23]} 9. Na3 {[%emt 0:03:48]} Bd7 {[%emt 0:02:18]} 10. Bd3 {[%emt 0:01:12]} Nc6 {[%emt 0:06:06]} 11. Nb5 {[%emt 0:06:57]} a6 {[%emt 0:06:06]} 12. g4 {[%emt 0:00:17]} axb5 {[%emt 0:07:47]} 13. Rxa8 {[%emt 0:00:09]} Qxa8 {[%emt 0:00:02]} 14. gxf5 {[%emt 0:00:08]} exf5 {[%emt 0:01:01]} 15. Qb3 {[%emt 0:16:41]} Qa5 {[%emt 0:04:54]} 16. O-O {[%emt 0:06:18]} b4 {[%emt 0:12:58]} 17. Bb2 {[%emt 0:01:29]} Be6 {[%emt 0:11:12]} 18. Ra1 {[%emt 0:01:15]} Qd8 {[%emt 0:00:02]} 19. c4 {[%emt 0:00:45]} Be7 {[%emt 0:03:26]} 20. cxd5 {[%emt 0:17:25]} Qxd5 {[%emt 0:01:35]} 21. Ra8+ {[%emt 0:00:41]} Bd8 {[%emt 0:00:30]} 22. Qxd5 {[%emt 0:05:14]} Bxd5 {[%emt 0:00:02]} 23. Nd2 {[%emt 0:00:54]} Ne7 {[%emt 0:07:44]} 24. Nc4 {[%emt 0:05:45]} O-O {[%emt 0:01:16]} 25. Ne3 {[%emt 0:03:56]} Be6 {[%emt 0:10:01]} 26. Rb8 {[%emt 0:06:04]} f4 {[%emt 0:02:36]} 27. Nc4 {[%emt 0:00:06]} Bd5 {[%emt 0:00:36]} 28. Nd6 {[%emt 0:02:42]} Nc6 29. Ra8 {[%emt 0:02:54]} Bb6 {[%emt 0:01:07]} 30. Bxh7+ {[%emt 0:00:18]} Kxh7 {[%emt 0:00:08]} 31. Rxf8 {[%emt 0:00:04]} 1/2-1/2